bitfinex-derivatives/quotes_BTCF0:USTF0_20240925
["timestamp","ask_amount","ask_price","bid_price","bid_amount"]
[1727277784680,0.078594,63949.0,63948.0,0.078192]
[1727277784879,0.0004,63949.0,63948.0,0.078192]
[1727277785483,0.0004,63949.0,63948.0,1.303696]
[1727277785687,0.0036,63958.0,63949.0,0.079191]
[1727277785874,0.0660744,63961.0,63960.0,0.078177]
[1727277786080,0.06482034,63962.0,63960.0,0.0004]
[1727277786295,0.00234594,63962.0,63961.0,0.16]
[1727277786594,0.0036,63969.0,63961.0,0.44879422]
[1727277786889,0.00096,63970.0,63969.0,0.078166]
[1727277787075,0.3645,63977.0,63976.0,0.078158]
[1727277787076,0.3608,63977.0,63976.0,0.078158]
[1727277787277,0.0660744,63985.0,63976.0,0.22231978]
[1727277787481,0.00234506,63987.0,63984.0,0.0004]
[1727277787482,0.08049006,63987.0,63984.0,0.0004]
[1727277787881,0.14296446,63987.0,63986.0,0.0004]
[1727277788088,0.14296446,63987.0,63984.0,0.0004]
[1727277788295,0.0004,63985.0,63984.0,0.0004]
[1727277789391,0.078547,63985.0,63984.0,0.0004]
[1727277789583,0.078547,63985.0,63984.0,0.0014]
[1727277790575,0.078547,63985.0,63984.0,0.0024]
[1727277791579,1.578547,63985.0,63984.0,0.0024]
[1727277792380,1.816694,63985.0,63984.0,0.0024]
[1727277792588,2.72928,63985.0,63977.0,0.0036]
[1727277792790,0.078161,63973.0,63972.0,0.0036]
[1727277792989,0.078165,63970.0,63969.0,0.0004]
[1727277793177,0.078565,63970.0,63969.0,0.0004]
[1727277793701,0.0004,63970.0,63968.0,0.00234475]
[1727277794084,0.0004,63969.0,63968.0,0.00234475]
[1727277794481,0.0004,63969.0,63968.0,0.08051175]
[1727277795285,0.0014,63969.0,63968.0,0.08151175]
[1727277795590,0.080566,63969.0,63968.0,0.00434475]
[1727277795799,0.0024,63969.0,63968.0,0.00434475]
[1727277796290,0.080566,63969.0,63968.0,0.00434475]
[1727277797197,0.0024,63969.0,63968.0,0.08251175]
[1727277798782,0.438962,63973.0,63968.0,0.00434475]
[1727277798783,0.439802,63973.0,63968.0,0.00434475]
[1727277798987,0.438962,63973.0,63972.0,0.1604]
[1727277799295,0.438962,63973.0,63972.0,0.238563]
[1727277800896,0.0036,63982.0,63972.0,0.6969132]
[1727277801099,0.68944,63985.0,63982.0,0.07815]
[1727277801394,0.07815,63982.0,63981.0,0.0004]
[1727277801788,0.07855,63982.0,63981.0,0.0004]
[1727277802798,0.07855,63982.0,63981.0,0.0014]
[1727277803186,0.07855,63982.0,63981.0,0.079552]
[1727277803389,0.0004,63982.0,63981.0,0.239552]
[1727277803891,0.0004,63982.0,63981.0,0.240552]
[1727277804094,0.0004,63982.0,63981.0,0.601352]
[1727277804697,0.0004,63982.0,63981.0,0.85999175]
[1727277804896,0.0004,63982.0,63981.0,1.32887175]
[1727277805095,0.0004,63982.0,63981.0,1.32787175]
[1727277805297,0.0004,63982.0,63981.0,1.32887175]
[1727277805813,0.0004,63982.0,63981.0,1.25071975]
[1727277805986,0.3608,63991.0,63986.0,0.078146]
[1727277806190,0.3608,63991.0,63990.0,0.238541]
[1727277807202,0.3608,63991.0,63990.0,0.078541]
[1727277807401,0.438939,63991.0,63990.0,0.078541]
[1727277807997,0.438939,63991.0,63990.0,0.079541]
[1727277808797,0.438939,63991.0,63990.0,0.080541]
[1727277809002,0.3608,63991.0,63990.0,0.240541]
[1727277809300,0.01092849,63996.0,63995.0,0.078135]
[1727277809601,0.078133,63996.0,63995.0,0.078535]
[1727277809998,0.078125,64003.0,63995.0,0.078535]
[1727277809999,0.37177341,63999.0,63995.0,0.078535]
[1727277810209,0.44990341,63999.0,63998.0,0.078531]
[1727277810504,0.52803341,63999.0,63998.0,0.0004]
[1727277811403,0.078139,63991.0,63990.0,0.001]
[1727277811704,0.44990341,63999.0,63989.0,0.078141]
[1727277811705,0.3608,63993.0,63989.0,0.078141]
[1727277811904,0.438937,63993.0,63992.0,0.0008]
[1727277812500,0.517074,63993.0,63992.0,0.0008]
[1727277813197,0.517074,63993.0,63992.0,0.0018]
[1727277813592,0.518074,63993.0,63992.0,0.0028]
[1727277820121,0.439937,63993.0,63992.0,0.080938]
[1727277821913,0.3618,63993.0,63992.0,0.09194952]
[1727277822217,0.3618,63993.0,63992.0,0.080938]
[1727277822419,0.439937,63993.0,63992.0,0.080938]
[1727277828426,0.439937,63993.0,63992.0,0.0028]
[1727277828427,0.5024114,63993.0,63992.0,0.0028]
[1727277828627,0.5024114,63993.0,63992.0,0.080938]
[1727277828826,0.439937,63993.0,63992.0,0.080938]
[1727277829126,0.50233296,63993.0,63992.0,0.080938]
[1727277829321,0.50233296,63993.0,63992.0,0.0028]
[1727277829322,0.878874,63993.0,63992.0,0.0028]
[1727277829525,2.29420386,63993.0,63992.0,0.0028]
[1727277829826,0.078147,63985.0,63984.0,0.081747]
[1727277830012,0.438947,63985.0,63984.0,0.078147]
[1727277831617,0.438947,63985.0,63984.0,0.079147]
[1727277832322,0.50337543,63985.0,63984.0,0.080147]
[1727277832521,0.440947,63985.0,63984.0,0.080147]
[1727277832830,0.50337706,63985.0,63984.0,0.080147]
[1727277833134,0.51414454,63985.0,63984.0,0.080147]
[1727277834825,0.45171448,63985.0,63984.0,0.080147]
[1727277836727,0.52986148,63985.0,63984.0,0.002]
[1727277836926,0.52986148,63985.0,63984.0,0.080148]
[1727277837225,0.45171448,63985.0,63984.0,0.080148]
[1727277838030,0.37356748,63985.0,63984.0,0.080148]
[1727277838532,0.01276748,63985.0,63984.0,0.080148]
[1727277838755,0.002,63985.0,63984.0,0.080148]
[1727277839726,0.50335773,63985.0,63984.0,0.080148]
[1727277840526,0.5033689,63985.0,63984.0,0.080148]
[1727277840836,0.440947,63985.0,63984.0,0.080148]
[1727277841022,0.50336799,63985.0,63984.0,0.080148]
[1727277842237,0.50336799,63985.0,63984.0,0.12687218]
[1727277842238,0.440947,63985.0,63984.0,0.12687218]
[1727277842433,0.440947,63985.0,63984.0,0.080148]
[1727277843638,0.080147,63985.0,63984.0,0.12687329]
[1727277844236,0.158294,63985.0,63984.0,0.12687329]
[1727277844436,0.318294,63985.0,63984.0,0.002]
[1727277844628,0.38071499,63985.0,63984.0,0.002]
[1727277844830,0.318294,63985.0,63984.0,0.002]
[1727277845236,1.818294,63985.0,63984.0,0.002]
[1727277845438,1.88071797,63985.0,63984.0,0.002]
[1727277845643,0.080147,63985.0,63984.0,0.080148]
[1727277849450,0.158294,63985.0,63984.0,0.080148]
[1727277849643,0.080147,63985.0,63984.0,0.080148]
[1727277849945,0.158294,63985.0,63984.0,0.080148]
[1727277850132,0.158294,63985.0,63984.0,0.002]
[1727277850534,0.080147,63985.0,63984.0,0.002]
[1727277850742,0.158294,63985.0,63984.0,0.002]
[1727277851449,0.22071674,63985.0,63984.0,0.002]
[1727277851642,0.158294,63985.0,63984.0,0.002]
[1727277851944,0.318294,63985.0,63984.0,0.002]
[1727277853247,0.396441,63985.0,63984.0,0.002]
[1727277853444,0.236441,63985.0,63984.0,0.002]
[1727277853758,0.396441,63985.0,63984.0,0.002]
[1727277855444,0.318294,63985.0,63984.0,0.002]
[1727277855646,0.396441,63985.0,63984.0,0.002]
[1727277855844,0.158294,63985.0,63984.0,0.002]
[1727277856042,0.318294,63985.0,63984.0,0.002]
[1727277856244,0.396441,63985.0,63984.0,0.002]
[1727277856440,0.236441,63985.0,63984.0,0.002]
[1727277856743,0.396441,63985.0,63984.0,0.002]
[1727277856948,0.18734077,63985.0,63977.0,0.04670957]
[1727277857150,0.42326636,63978.0,63977.0,0.04670957]
[1727277857361,0.078157,63977.0,63976.0,0.04670957]
[1727277857539,0.078163,63972.0,63971.0,0.06466443]
[1727277857844,0.078163,63972.0,63966.0,0.15614571]
[1727277857845,0.078166,63969.0,63966.0,0.12495529]
[1727277858056,0.59928295,63972.0,63966.0,0.12496181]
[1727277858057,0.316738,63967.0,63966.0,0.12496181]
[1727277858241,0.316338,63967.0,63966.0,0.1249716]
[1727277858435,0.316338,63967.0,63963.0,0.078173]
[1727277858436,0.07817,63966.0,63963.0,0.078173]
[1727277858639,0.599372,63964.0,63963.0,0.078173]
[1727277859235,0.078175,63962.0,63961.0,0.033]
[1727277859550,0.078178,63959.0,63958.0,0.07818]
[1727277859748,0.078578,63959.0,63958.0,0.07818]
[1727277860654,0.078578,63959.0,63958.0,0.08318]
[1727277860952,0.078578,63959.0,63958.0,0.08718]
[1727277861263,0.078578,63959.0,63958.0,0.08218]
[1727277861455,0.078578,63959.0,63958.0,0.08618]
[1727277861752,0.078578,63959.0,63958.0,0.1328782]
[1727277862346,0.078578,63959.0,63958.0,0.08618]
[1727277863450,0.080578,63959.0,63958.0,0.07818]
[1727277863752,0.240578,63959.0,63958.0,0.07818]
[1727277863961,0.078184,63955.0,63954.0,0.078183]
[1727277864255,0.078185,63954.0,63953.0,0.00234534]
[1727277864552,0.078585,63954.0,63953.0,0.00234534]
[1727277864943,0.078585,63954.0,63953.0,0.08053134]
[1727277867353,0.081585,63954.0,63953.0,0.079186]
[1727277867654,0.083585,63954.0,63953.0,0.080186]
[1727277868045,0.083585,63954.0,63953.0,0.002]
[1727277868352,0.080585,63954.0,63953.0,0.001]
[1727277868557,0.083585,63954.0,63953.0,0.002]
[1727277869452,0.083585,63954.0,63946.0,0.0036]
[1727277869453,0.156386,63947.0,63946.0,0.0036]
[1727277869671,0.156394,63944.0,63943.0,0.0466982]
[1727277869842,0.078197,63944.0,63943.0,0.0466982]
[1727277870042,0.078198,63943.0,63942.0,0.078199]
[1727277870244,0.238598,63943.0,63942.0,0.078199]
[1727277870453,0.078205,63939.0,63938.0,0.078202]
[1727277870654,0.078208,63935.0,63934.0,0.1249062]
[1727277870854,0.078608,63935.0,63934.0,0.13550809]
[1727277871153,0.52164,63939.0,63934.0,0.05730009]
[1727277871353,0.078204,63938.0,63937.0,0.078204]
[1727277872256,0.3616,63939.0,63938.0,0.078204]
[1727277872556,0.3608,63939.0,63938.0,0.078604]
[1727277873361,0.3608,63939.0,63938.0,0.156808]
[1727277873555,0.3648,63939.0,63938.0,0.079604]
[1727277873756,0.3688,63939.0,63938.0,0.080604]
[1727277876057,0.3638,63939.0,63938.0,0.078604]
[1727277876270,0.3668,63939.0,63938.0,0.078604]
[1727277876562,0.3638,63939.0,63938.0,0.078604]
[1727277876761,0.3668,63939.0,63938.0,0.079604]
[1727277876958,0.5268,63939.0,63938.0,0.080604]
[1727277877158,0.602003,63939.0,63938.0,0.0014]
[1727277877357,0.605003,63939.0,63938.0,0.0024]
[1727277877559,0.605003,63939.0,63938.0,0.080604]
[1727277879065,0.445003,63939.0,63938.0,0.080604]
[1727277882949,0.3668,63939.0,63938.0,0.080604]
[1727277883152,0.3638,63939.0,63938.0,0.079604]
[1727277883349,0.3668,63939.0,63938.0,0.080604]
[1727277883968,0.3668,63939.0,63938.0,0.158808]
[1727277885961,0.3668,63939.0,63938.0,0.080604]
[1727277886468,0.3638,63939.0,63938.0,0.1253022]
[1727277886667,0.3668,63939.0,63938.0,0.1263022]
[1727277887165,0.3638,63939.0,63938.0,0.078604]
[1727277887465,0.3668,63939.0,63938.0,0.14192378]
[1727277887669,0.3638,63939.0,63938.0,0.14192378]
[1727277887870,0.3668,63939.0,63938.0,0.14292378]
[1727277888071,0.3668,63939.0,63938.0,0.080604]
[1727277889257,0.445003,63939.0,63938.0,0.080604]
[1727277889960,0.445003,63939.0,63938.0,0.079604]
[1727277890154,0.445003,63939.0,63938.0,0.080604]
[1727277890963,0.445003,63939.0,63938.0,0.14292378]
[1727277891569,0.445003,63939.0,63938.0,0.14290945]
[1727277891956,0.445003,63939.0,63938.0,0.080604]
[1727277892764,0.442003,63939.0,63938.0,0.079604]
[1727277892957,0.442003,63939.0,63938.0,0.14290945]
[1727277892958,0.445003,63939.0,63938.0,0.14290945]
[1727277893468,0.523206,63939.0,63938.0,0.06476058]
[1727277893667,0.078208,63935.0,63931.0,0.00234626]
[1727277893868,0.078208,63935.0,63932.0,0.078212]
[1727277893869,0.078212,63933.0,63932.0,0.078212]
[1727277894062,0.316424,63932.0,63931.0,0.00234626]
[1727277894262,0.187524,63932.0,63931.0,0.04913881]
[1727277894466,0.269312,63932.0,63931.0,0.12734757]
[1727277894671,0.078612,63932.0,63931.0,0.08055926]
[1727277894870,0.0004,63932.0,63931.0,0.08055926]
[1727277895062,0.0004,63932.0,63931.0,0.14059687]
[1727277895270,0.0004,63932.0,63931.0,0.316426]
[1727277895473,0.0004,63932.0,63931.0,0.32624684]
[1727277895670,0.0004,63932.0,63931.0,0.24827013]
[1727277896067,0.0034,63932.0,63931.0,0.24827013]
[1727277896373,0.0034,63932.0,63931.0,0.17005713]
[1727277896572,0.442412,63932.0,63931.0,0.17005713]
[1727277896770,0.081612,63932.0,63931.0,0.17005713]
[1727277897376,0.086612,63932.0,63931.0,0.17105713]
[1727277898279,0.525624,63932.0,63931.0,0.001]
[1727277898577,0.685624,63932.0,63931.0,0.001]
[1727277899984,0.69651557,63932.0,63931.0,0.001]
[1727277900180,0.61830357,63932.0,63931.0,0.06246127]
[1727277900376,0.61830357,63932.0,63923.0,0.0036]
[1727277900377,0.078221,63924.0,63923.0,0.0036]
[1727277900573,0.078226,63920.0,63919.0,0.078226]
[1727277900767,0.078226,63920.0,63919.0,0.17073781]
[1727277901182,0.238226,63920.0,63919.0,0.078226]
[1727277901678,0.236226,63920.0,63919.0,0.078226]
[1727277902583,0.16,63923.0,63919.0,0.006]
[1727277902876,0.238225,63923.0,63922.0,0.0004]
[1727277903081,0.236225,63923.0,63922.0,0.0004]
[1727277903677,0.31445,63923.0,63922.0,0.0004]
[1727277903883,0.078232,63915.0,63914.0,0.0036]
[1727277904178,0.078235,63913.0,63906.0,0.0036]
[1727277904484,0.078247,63903.0,63902.0,0.081848]
[1727277904785,0.078247,63903.0,63898.0,0.078253]
[1727277904786,0.078251,63900.0,63898.0,0.078253]
[1727277904988,0.5148,63899.0,63898.0,0.078253]
[1727277905975,0.579052,63899.0,63898.0,0.078253]
[1727277906481,0.568052,63899.0,63898.0,0.078253]
[1727277907076,0.4908,63899.0,63898.0,0.008]
[1727277907266,0.569052,63899.0,63898.0,0.008]
[1727277907876,0.570052,63899.0,63898.0,0.008]
[1727277908280,0.410052,63899.0,63898.0,0.008]
[1727277908475,0.570052,63899.0,63898.0,0.086253]
[1727277909377,0.4918,63899.0,63898.0,0.086253]
[1727277909771,0.570052,63899.0,63898.0,0.086253]
[1727277910782,0.240252,63899.0,63898.0,0.086253]
[1727277910969,0.162,63899.0,63898.0,0.086253]
[1727277912388,0.240252,63899.0,63898.0,0.086253]
[1727277914183,0.162,63899.0,63898.0,0.086253]
[1727277914686,0.162,63899.0,63898.0,0.402759]
[1727277914687,0.002,63899.0,63898.0,0.402759]
[1727277914876,0.0323,63901.0,63900.0,0.234753]
[1727277915076,0.0323,63901.0,63900.0,0.595953]
[1727277915477,0.0323,63901.0,63900.0,0.517702]
[1727277915676,0.0323,63901.0,63900.0,0.439451]
[1727277916279,0.0323,63901.0,63900.0,0.078651]
[1727277916584,0.0323,63901.0,63900.0,0.0004]
[1727277916585,0.111549,63901.0,63900.0,0.0004]
[1727277916777,0.141849,63901.0,63900.0,0.0004]
[1727277917376,0.15266691,63901.0,63900.0,0.0004]
[1727277917777,0.141849,63901.0,63900.0,0.078651]
[1727277917983,0.0333,63901.0,63900.0,0.078651]
[1727277919790,0.0333,63901.0,63900.0,0.156902]
[1727277920393,0.0333,63901.0,63900.0,0.078651]
[1727277921299,0.001,63901.0,63900.0,0.078651]
[1727277922594,0.001,63901.0,63900.0,0.156902]
[1727277922791,0.001,63901.0,63900.0,0.187102]
[1727277923993,0.001,63901.0,63900.0,0.265353]
[1727277925183,0.001,63901.0,63900.0,0.187102]
[1727277929096,0.001,63901.0,63900.0,0.265353]
[1727277930396,0.001,63901.0,63900.0,0.187102]
[1727277931190,0.001,63901.0,63900.0,0.265353]
[1727277931391,0.001,63901.0,63900.0,0.187102]
[1727277931690,0.001,63901.0,63900.0,0.265353]
[1727277932907,0.001,63901.0,63900.0,1.59205021]
[1727277933201,0.001,63901.0,63900.0,1.71332093]
[1727277933396,0.0036,63907.0,63906.0,0.234729]
[1727277933602,0.004,63915.0,63914.0,0.078234]
[1727277933900,0.0004,63915.0,63914.0,0.078634]
[1727277934100,0.0004,63915.0,63914.0,0.078234]
[1727277934293,0.1104,63915.0,63914.0,0.078234]
[1727277934489,0.078237,63913.0,63912.0,0.078234]
[1727277934706,0.078637,63913.0,63912.0,0.078234]
[1727277935306,0.0004,63913.0,63912.0,0.078234]
[1727277936402,0.0074,63913.0,63912.0,0.078234]
[1727277937092,0.0184,63913.0,63912.0,0.078234]
[1727277937289,0.096635,63913.0,63912.0,0.078234]
[1727277937701,0.078241,63910.0,63909.0,0.078239]
[1727277937900,0.188641,63910.0,63909.0,0.078239]
[1727277938198,0.0004,63910.0,63909.0,0.078239]
[1727277938401,0.0004,63910.0,63909.0,0.156479]
[1727277939503,0.0084,63910.0,63909.0,0.156479]
[1727277939702,0.0124,63910.0,63909.0,0.156479]
[1727277941802,0.0124,63910.0,63909.0,0.078239]
[1727277942102,0.090638,63910.0,63906.0,0.078643]
[1727277942305,0.549442,63907.0,63906.0,0.078643]
[1727277942498,0.549442,63907.0,63906.0,0.0004]
[1727277942694,2.049442,63907.0,63906.0,0.0004]
[1727277943100,0.627684,63907.0,63906.0,0.0004]
[1727277943305,0.627684,63907.0,63902.0,0.078248]
[1727277943306,0.078252,63899.0,63898.0,0.0036]
[1727277943509,0.078252,63899.0,63893.0,0.3608]
[1727277943510,0.4712,63899.0,63896.0,0.078255]
[1727277943702,0.11,63897.0,63896.0,0.078255]
[1727277943905,0.1104,63897.0,63896.0,0.078255]
[1727277944410,0.0004,63897.0,63896.0,0.078255]
[1727277945010,0.3612,63899.0,63898.0,0.078253]
[1727277945011,0.0004,63899.0,63898.0,0.078253]
[1727277945506,0.078652,63899.0,63898.0,0.078653]
[1727277945904,0.079652,63899.0,63898.0,0.078653]
[1727277946405,0.079652,63899.0,63898.0,0.0044]
[1727277947799,0.079652,63899.0,63898.0,0.082653]
[1727277948198,0.0014,63899.0,63898.0,0.082653]
[1727277953318,0.0014,63899.0,63898.0,0.160906]
[1727277953506,0.0036,63907.0,63906.0,0.078243]
[1727277953817,0.110037,63911.0,63910.0,0.078238]
[1727277954007,0.078242,63908.0,63907.0,0.078242]
[1727277954208,0.078642,63908.0,63907.0,0.078242]
[1727277954602,0.078242,63908.0,63907.0,0.078242]
[1727277956424,0.080242,63908.0,63907.0,0.078242]
[1727277957019,0.086242,63908.0,63907.0,0.078242]
[1727277957320,0.246242,63908.0,63907.0,0.078242]
[1727277958421,0.086242,63908.0,63907.0,0.078242]
[1727277958609,0.246242,63908.0,63907.0,0.078242]
[1727277962224,0.008,63908.0,63907.0,0.316484]
[1727277962424,0.008,63908.0,63907.0,0.379284]
[1727277964318,0.008,63908.0,63907.0,0.8317634]
[1727277964523,0.008,63908.0,63907.0,1.09032884]
[1727277964716,0.008,63908.0,63907.0,1.183953]
[1727277965322,0.008,63908.0,63907.0,2.253393]
[1727277965620,0.0036,63916.0,63915.0,0.156464]
[1727277965829,0.0036,63924.0,63919.0,0.078227]
[1727277966126,0.3608,63925.0,63924.0,0.078221]
[1727277966528,0.3608,63925.0,63924.0,0.078621]
[1727277967928,0.078215,63929.0,63925.0,0.078219]
[1727277968125,0.078217,63928.0,63925.0,0.078219]
[1727277968631,0.238214,63930.0,63928.0,0.078216]
[1727277968829,0.238214,63930.0,63929.0,0.0004]
[1727277970025,0.238214,63930.0,63929.0,0.079615]
[1727277970026,0.252214,63930.0,63929.0,0.079615]
[1727277970431,0.266214,63930.0,63929.0,0.0024]
[1727277974920,0.344428,63930.0,63929.0,0.0024]
[1727277975833,0.891922,63930.0,63929.0,0.0024]
[1727277976021,0.16,63921.0,63920.0,0.0036]
[1727277976222,0.078229,63918.0,63915.0,0.3612]
[1727277976428,0.0004,63921.0,63920.0,0.078226]
[1727277976733,0.0004,63921.0,63920.0,0.078626]
[1727277977036,0.0004,63921.0,63920.0,0.156452]
[1727277977231,0.0144,63921.0,63920.0,0.079226]
[1727277977420,0.1744,63921.0,63920.0,0.079226]
[1727277977729,0.252625,63921.0,63920.0,0.079226]
[1727277977936,0.33085,63921.0,63920.0,0.001]
[1727277978120,0.33085,63921.0,63910.0,0.06232766]
[1727277978121,0.078234,63914.0,63910.0,0.078238]
[1727277978437,0.078234,63914.0,63911.0,0.078236]
[1727277978438,0.078236,63912.0,63911.0,0.078236]
[1727277978634,0.078636,63912.0,63911.0,0.078236]
[1727277979833,0.087636,63912.0,63911.0,0.078236]
[1727277980235,0.093636,63912.0,63911.0,0.078236]
[1727277980426,0.0154,63912.0,63911.0,0.078236]
[1727277985435,0.0154,63912.0,63911.0,0.14056366]
[1727277987036,0.093636,63912.0,63911.0,0.14056366]
[1727277987241,0.093636,63912.0,63911.0,0.078236]
[1727277987738,0.093636,63912.0,63905.0,0.06232766]
[1727277987739,0.078243,63906.0,63905.0,0.06232766]
[1727277987938,0.15649,63905.0,63904.0,0.06232766]
[1727277988138,0.156494,63903.0,63902.0,0.00234733]
[1727277988856,0.316494,63903.0,63902.0,0.00234733]
[1727277990038,0.075256,63896.0,63895.0,0.06592766]
[1727277990241,0.078258,63895.0,63894.0,0.078257]
[1727277990427,0.078658,63895.0,63894.0,0.078257]
[1727277990630,0.0004,63895.0,63894.0,0.078257]
[1727277991126,0.0004,63895.0,63894.0,0.14058466]
[1727277991335,0.0004,63895.0,63894.0,0.078257]
[1727277992034,0.0014,63896.0,63895.0,0.079857]
[1727277992344,0.0014,63896.0,63895.0,0.080257]
[1727277992733,0.078656,63896.0,63895.0,0.0004]
[1727277993239,0.079256,63896.0,63895.0,0.0004]
[1727277994148,0.079256,63896.0,63895.0,0.078657]
[1727277994538,0.083256,63896.0,63895.0,0.078657]
[1727277994937,0.005,63896.0,63895.0,0.078657]
[1727277995342,0.007,63896.0,63895.0,0.078657]
[1727277995544,0.011,63896.0,63895.0,0.078657]
[1727277997941,0.089256,63896.0,63895.0,0.078657]
[1727277998440,0.089256,63896.0,63895.0,0.0004]
[1727277999245,0.249256,63896.0,63895.0,0.078657]
[1727277999551,0.089256,63896.0,63895.0,0.078657]
[1727278003744,0.011,63896.0,63895.0,0.078657]
[1727278004145,0.089256,63896.0,63895.0,0.078657]
[1727278008462,0.011,63896.0,63895.0,0.14098466]
[1727278008647,0.011,63896.0,63895.0,0.439457]
[1727278008957,0.078244,63906.0,63902.0,0.078248]
[1727278009159,0.078242,63908.0,63907.0,0.078241]
[1727278009450,0.088896,63908.0,63907.0,0.078641]
[1727278009659,0.088896,63908.0,63907.0,0.078241]
[1727278010654,0.102896,63908.0,63907.0,0.078241]
[1727278011756,0.024654,63908.0,63907.0,0.078241]
[1727278011955,0.038654,63908.0,63907.0,0.079241]
[1727278012458,0.116895,63908.0,63907.0,0.079241]
[1727278020663,0.195136,63908.0,63907.0,0.079241]
[1727278023868,0.355136,63908.0,63907.0,0.04786755]
[1727278024168,0.078243,63906.0,63903.0,0.06240059]
[1727278024366,0.156494,63903.0,63902.0,0.078648]
[1727278024574,0.156894,63903.0,63902.0,0.06280059]
[1727278025071,0.249594,63903.0,63902.0,0.0004]
[1727278025469,0.359594,63903.0,63902.0,0.0004]
[1727278026663,0.370594,63903.0,63902.0,0.0014]
[1727278027262,0.384594,63903.0,63902.0,0.0024]
[1727278030468,0.384594,63903.0,63902.0,0.080648]
[1727278031969,0.1354,63903.0,63902.0,0.080648]
[1727278032171,0.0254,63903.0,63902.0,0.080648]
[1727278033058,0.1354,63903.0,63902.0,0.080648]
[1727278033869,0.213647,63903.0,63902.0,0.080648]
[1727278034066,0.27615047,63903.0,63902.0,0.080648]
[1727278034257,0.2761649,63903.0,63902.0,0.080648]
[1727278034463,0.1661649,63903.0,63902.0,0.12753401]
[1727278034773,0.27616592,63903.0,63902.0,0.080648]
[1727278035166,0.35441292,63903.0,63902.0,0.04928574]
[1727278035362,0.35441432,63903.0,63902.0,0.0024]
[1727278035574,0.402141,63903.0,63902.0,0.0024]
[1727278035770,0.464341,63903.0,63902.0,0.0024]
[1727278036267,0.514341,63903.0,63902.0,0.0024]
[1727278040674,0.57685845,63903.0,63902.0,0.0024]
[1727278040981,0.514341,63903.0,63902.0,0.0024]
[1727278044582,0.156504,63899.0,63898.0,0.04688574]
[1727278044779,0.156506,63898.0,63897.0,0.04688574]
[1727278045083,0.156508,63897.0,63896.0,0.04688574]
[1727278045279,0.316908,63897.0,63896.0,0.04688574]
[1727278045474,0.316508,63897.0,63896.0,0.04688574]
[1727278045669,0.078257,63895.0,63894.0,0.06240059]
[1727278045873,0.155914,63895.0,63894.0,0.06240059]
[1727278046074,0.314914,63895.0,63894.0,0.06240059]
[1727278046281,0.078258,63894.0,63893.0,0.078259]
[1727278046478,0.078258,63894.0,63893.0,0.14076236]
[1727278046679,0.077658,63894.0,63893.0,0.078259]
[1727278047077,0.076658,63894.0,63893.0,0.078259]
[1727278047581,0.0004,63894.0,63893.0,0.078259]
[1727278047886,0.0004,63894.0,63893.0,0.61062232]
[1727278048277,0.009,63895.0,63894.0,0.156516]
[1727278048477,0.362,63899.0,63898.0,0.078253]
[1727278048478,0.3612,63899.0,63898.0,0.078253]
[1727278048679,0.3612,63899.0,63898.0,0.078653]
[1727278048895,0.0004,63899.0,63898.0,0.24960875]
[1727278049072,0.0004,63904.0,63903.0,0.078247]
[1727278049278,0.0004,63904.0,63903.0,0.24919497]
[1727278049480,0.0004,63904.0,63903.0,0.24966274]
[1727278049786,0.0004,63904.0,63903.0,0.078647]
[1727278050287,0.078242,63907.0,63906.0,0.078243]
[1727278050586,0.078242,63907.0,63906.0,0.14111704]
[1727278051174,0.078242,63907.0,63906.0,0.078643]
[1727278051580,0.078242,63907.0,63906.0,0.14110492]
[1727278052384,0.092242,63907.0,63906.0,0.14210492]
[1727278052688,0.092242,63907.0,63906.0,0.1421051]
[1727278052888,0.014,63907.0,63906.0,0.1421051]
[1727278053485,0.014,63907.0,63906.0,0.079643]
[1727278053681,0.014,63907.0,63906.0,0.158886]
[1727278053682,0.028,63907.0,63906.0,0.158886]
[1727278054088,0.028,63907.0,63906.0,0.32951366]
[1727278054489,0.028,63907.0,63906.0,0.158886]
[1727278058383,0.0036,63915.0,63914.0,0.156468]
[1727278058583,0.0023474,63920.0,63915.0,0.078232]
[1727278058789,0.0023474,63920.0,63919.0,0.316854]
[1727278058992,0.0023474,63920.0,63919.0,0.316454]
[1727278059491,0.0023474,63920.0,63919.0,0.28493929]
[1727278059698,0.0023474,63920.0,63919.0,0.078227]
[1727278059880,0.0023474,63920.0,63919.0,0.079227]
[1727278059881,0.0163474,63920.0,63919.0,0.079227]
[1727278060683,0.0023474,63920.0,63919.0,0.078227]
[1727278060888,0.0303474,63920.0,63919.0,0.080227]
[1727278061894,0.0303474,63920.0,63919.0,0.12693929]
[1727278062294,0.0303474,63920.0,63919.0,0.080227]
[1727278062501,0.0303474,63920.0,63919.0,0.12691896]
[1727278063084,0.0303474,63920.0,63919.0,0.318454]
[1727278063599,0.0036,63926.0,63919.0,0.318454]
[1727278063600,0.0036,63926.0,63925.0,0.07822]
[1727278063793,0.5208,63927.0,63926.0,0.078219]
[1727278063987,0.5208,63927.0,63926.0,0.078619]
[1727278064194,0.599018,63927.0,63926.0,0.078619]
[1727278064389,0.238218,63927.0,63926.0,0.078619]
[1727278064996,0.316436,63927.0,63926.0,0.0004]
[1727278065194,0.677236,63927.0,63926.0,0.0004]
[1727278066290,0.677236,63927.0,63926.0,0.0014]
[1727278066588,0.517236,63927.0,63926.0,0.0014]
[1727278066890,0.677236,63927.0,63926.0,0.0024]
[1727278067398,0.517236,63927.0,63926.0,0.0024]
[1727278067588,0.677236,63927.0,63926.0,0.0024]
[1727278067986,0.68810739,63927.0,63926.0,0.0024]
[1727278069201,0.52810739,63927.0,63926.0,0.0024]